[Event "EYTCC Open U18 2018"]
[Site "Bad Blankeburg"]
[Date "2018.07.12"]
[Round "1"]
[White "Bronstein, Or"]
[Black "Nikitenko, Mihail"]
[Result "0-1"]
[ECO "D10"]
[WhiteElo "2350"]
[BlackElo "2371"]
[Annotator "NA"]
[PlyCount "144"]
[EventDate "2018.07.12"]
[EventType "swiss"]
[EventCountry "GER"]
[SourceTitle "playchess.com"]
[Source "ChessBase"]
[SourceQuality "1"]
[TimeControl "40/5400+30:1800+30"]

1. d4 {[%emt 0:00:00]} d5 {[%emt 0:00:16]} 2. c4 {[%emt 0:00:06]} c6 {[%emt 0:00:09]} 3. cxd5 {[%emt 0:00:30]} cxd5 {[%emt 0:00:08]} 4. Bf4 {[%emt 0:00:07]} Nc6 {[%emt 0:00:24]} 5. e3 {[%emt 0:00:20]} Nf6 {[%emt 0:00:11]} 6. Nc3 {[%emt 0:00:09]} e6 {[%emt 0:00:13]} 7. Bd3 {[%emt 0:00:25]} Be7 {[%emt 0:00:08]} 8. Rc1 {[%emt 0:00:30]} O-O {[%emt 0:00:34]} 9. h3 {[%emt 0:00:12]} Bd7 {[%emt 0:00:10]} 10. Nf3 {[%emt 0:00:07]} Qa5 {[%emt 0:00:23]} 11. O-O {[%emt 0:02:39]} Rfc8 {[%emt 0:00:09]} 12. Qe2 {[%emt 0:10:37]} Be8 {[%emt 0:00:38]} 13. a3 {[%emt 0:00:47]} Qd8 {[%emt 0:01:13]} 14. Rc2 {[%emt 0:10:42]} Na5 {[%emt 0:05:39]} 15. Ne5 {[%emt 0:08:22]} Nd7 {[%emt 0:01:58]} 16. Qg4 {[%emt 0:20:15]} f5 {[%emt 0:13:22]} 17. Qg3 {[%emt 0:07:51]} Bh4 {[%emt 0:02:45]} 18. Qf3 {[%emt 0:04:07]} Nxe5 {[%emt 0:00:13]} 19. Bxe5 {[%emt 0:00:01]} Nc4 {[%emt 0:00:21]} 20. Bxc4 {[%emt 0:00:24]} Rxc4 {[%emt 0:00:08]} 21. Rd2 {[%emt 0:04:35]} Rac8 {[%emt 0:03:32]} 22. Ne2 {[%emt 0:09:49]} Qa5 {[%emt 0:05:33]} 23. Rdd1 {[%emt 0:02:42]} Rc2 {[%emt 0:00:10]} 24. Nf4 {[%emt 0:00:39]} Qa6 {[%emt 0:07:40]} 25. g3 {[%emt 0:07:05]} Bg5 {[%emt 0:04:09]} 26. Rb1 {[%emt 0:01:16]} Bh6 {[%emt 0:06:03]} 27. Rfd1 {[%emt 0:03:50]} Bb5 {[%emt 0:02:33]} 28. b3 {[%emt 0:01:23]} Bxf4 {[%emt 0:03:14]} 29. Qxf4 {[%emt 0:00:02]} h6 {[%emt 0:00:43]} 30. Qh4 {[%emt 0:02:05]} Be8 {[%emt 0:03:25]} 31. Qe7 {[%emt 0:00:20]} Bf7 {[%emt 0:00:04]} 32. Re1 {[%emt 0:00:53]} Qc6 {[%emt 0:02:14]} 33. a4 {[%emt 0:01:21]} Re8 {[%emt 0:05:05]} 34. Qa3 {[%emt 0:01:13]} Qc3 {[%emt 0:01:21]} 35. Rec1 {[%emt 0:00:51]} Rc8 {[%emt 0:00:07]} 36. Rxc2 {[%emt 0:00:19]} Qxc2 {[%emt 0:00:05]} 37. Qb2 {[%emt 0:01:17]} Bh5 {[%emt 0:01:38]} 38. Qxc2 {[%emt 0:00:19]} Rxc2 {[%emt 0:00:05]} 39. Bd6 {[%emt 0:00:35]} Bf3 {[%emt 0:01:04]} 40. a5 {[%emt 0:00:41]} a6 {[%emt 0:01:26]} 41. Kf1 {[%emt 0:15:08]} Be2+ {[%emt 0:01:22]} 42. Kg2 {[%emt 0:00:31]} g5 {[%emt 0:00:05]} 43. g4 {[%emt 0:08:48]} fxg4 {[%emt 0:00:09]} 44. hxg4 {[%emt 0:00:09]} Bxg4 {[%emt 0:00:04]} 45. Ba3 {[%emt 0:01:40]} Ra2 {[%emt 0:01:03]} 46. Bb4 {[%emt 0:00:01]} Bf5 {[%emt 0:00:13]} 47. Rc1 {[%emt 0:00:11]} Bc2 {[%emt 0:00:05]} 48. Kg3 {[%emt 0:03:46]} Kf7 {[%emt 0:00:19]} 49. f4 {[%emt 0:03:37]} Kg6 {[%emt 0:00:25]} 50. fxg5 {[%emt 0:00:17]} hxg5 {[%emt 0:00:04]} 51. Rf1 {[%emt 0:01:20]} Be4 {[%emt 0:03:02]} 52. Rf2 {[%emt 0:00:12]} Ra1 {[%emt 0:00:03]} 53. Rh2 {[%emt 0:00:51]} Rb1 {[%emt 0:01:36]} 54. Bd6 {[%emt 0:00:30]} Rxb3 {[%emt 0:00:14]} 55. Kf2 {[%emt 0:00:16]} Rb2+ {[%emt 0:00:16]} 56. Kg3 {[%emt 0:00:02]} Rb1 {[%emt 0:00:05]} 57. Rh8 {[%emt 0:01:10]} Rg1+ {[%emt 0:01:56]} 58. Kf2 {[%emt 0:00:01]} Rg2+ {[%emt 0:00:05]} 59. Kf1 {[%emt 0:00:03]} Ra2 {[%emt 0:00:16]} 60. Bc7 {[%emt 0:00:27]} Bd3+ {[%emt 0:00:51]} 61. Kg1 {[%emt 0:00:18]} Kf5 {[%emt 0:00:18]} 62. Rg8 {[%emt 0:00:30]} Kg4 {[%emt 0:02:35]} 63. Bd8 {[%emt 0:00:32]} Kh3 {[%emt 0:00:07]} 64. Rh8+ {[%emt 0:01:06]} Kg3 {[%emt 0:00:05]} 65. Bc7+ {[%emt 0:00:05]} Kg4 {[%emt 0:00:20]} 66. Rg8 {[%emt 0:00:18]} Ra1+ {[%emt 0:00:16]} 67. Kf2 {[%emt 0:00:41]} Ra2+ {[%emt 0:10:40]} 68. Kg1 {[%emt 0:00:01]} Be4 {[%emt 0:00:03]} 69. Bd8 {[%emt 0:00:42]} Kf3 {[%emt 0:00:14]} 70. Rxg5 {[%emt 0:01:36]} Kxe3 {[%emt 0:00:13]} 71. Bb6 {[%emt 0:00:37]} Ra1+ {[%emt 0:00:23]} 72. Kh2 {[%emt 0:00:02]} Kf4 {[%emt 0:00:06]} 0-1

[Event "EYTCC Open U18 2018"]
[Site "Bad Blankeburg"]
[Date "2018.07.12"]
[Round "1"]
[White "Dobrovoljc, Vid"]
[Black "Janik, Igor"]
[Result "*"]
[ECO "A50"]
[WhiteElo "2344"]
[BlackElo "2420"]
[Annotator "NA RC"]
[PlyCount "114"]
[EventDate "2018.07.12"]
[EventType "swiss"]
[EventCountry "GER"]
[SourceTitle "playchess.com"]
[Source "ChessBase"]
[SourceQuality "1"]
[TimeControl "40/5400+30:1800+30"]

1. d4 {[%emt 0:00:00]} Nf6 {[%emt 0:00:00]} 2. c4 {[%emt 0:00:00]} b6 {[%emt 0:00:00]} 3. Nc3 {[%emt 0:00:24]} Bb7 {[%emt 0:00:00]} 4. Qc2 {[%emt 0:02:53]} d5 {[%emt 0:01:05]} 5. cxd5 {[%emt 0:00:31]} Nxd5 {[%emt 0:00:08]} 6. Nf3 {[%emt 0:01:06]} Nxc3 {[%emt 0:10:10]} 7. bxc3 {[%emt 0:12:51]} Nd7 {[%emt 0:00:25]} 8. e4 {[%emt 0:08:21]} g6 {[%emt 0:03:23]} 9. h4 {[%emt 0:08:26]} h6 {[%emt 0:01:19]} 10. e5 {[%emt 0:09:43]} e6 {[%emt 0:03:17]} 11. Bd3 {[%emt 0:00:30]} c5 {[%emt 0:04:56]} 12. Rh3 {[%emt 0:18:27]} Qc7 {[%emt 0:04:56]} 13. Qb2 {[%emt 0:03:19]} c4 {[%emt 0:04:12]} 14. Bc2 {[%emt 0:01:37]} Bd5 {[%emt 0:04:39]} 15. a4 {[%emt 0:01:12]} a6 {[%emt 0:01:16]} 16. Qa2 {[%emt 0:02:56]} Qc6 {[%emt 0:01:34]} 17. Ba3 {[%emt 0:01:45]} O-O-O {[%emt 0:01:02]} 18. Rg3 {[%emt 0:03:15]} Kc7 {[%emt 0:05:19]} 19. Kf1 {[%emt 0:01:41]} Bxa3 {[%emt 0:19:20]} 20. Qxa3 {[%emt 0:00:06]} Rdg8 {[%emt 0:00:13]} 21. Kg1 {[%emt 0:05:58]} Rg7 {[%emt 0:00:48]} 22. Re1 {[%emt 0:02:18]} Rhg8 {[%emt 0:00:13]} 23. Qc1 {[%emt 0:02:34]} g5 {[%emt 0:04:04]} 24. hxg5 {[%emt 0:00:10]} Bxf3 {[%emt 0:00:12]} 25. gxf3 {[%emt 0:00:03]} Rxg5 {[%emt 0:00:15]} 26. Qf4 {[%emt 0:00:25]} R8g7 {[%emt 0:03:34]} 27. Kg2 {[%emt 0:01:25]} b5 {[%emt 0:02:13]} 28. Be4 {[%emt 0:05:28]} Qb6 {[%emt 0:00:07]} 29. axb5 {[%emt 0:00:49]} axb5 {[%emt 0:00:17]} 30. Rh1 {[%emt 0:01:20]} Qa5 {[%emt 0:01:19]} 31. Qd2 {[%emt 0:00:55]} Nb6 {[%emt 0:02:41]} 32. Rxh6 {[%emt 0:03:59]} Rxg3+ {[%emt 0:01:09]} 33. fxg3 {[%emt 0:00:04]} Na4 {[%emt 0:02:41]} 34. Qf4 {[%emt 0:00:54]} Qxc3 {[%emt 0:00:15]} 35. Qf6 {[%emt 0:00:06]} Qd2+ {[%emt 0:01:02]} 36. Kh3 {[%emt 0:00:11]} Qg5 {[%emt 0:00:00]} 37. Qxg5 {[%emt 0:00:14]} Rxg5 {[%emt 0:00:00]} 38. Rh7 {[%emt 0:00:25]} Nc3 {[%emt 0:04:44]} 39. Rxf7+ {[%emt 0:00:06]} Kb6 {[%emt 0:00:05]} 40. Rf6 {[%emt 0:01:04]} Nxe4 {[%emt 0:01:13]} 41. Rxe6+ {[%emt 0:03:13]} Kb7 {[%emt 0:02:45]} 42. Re7+ {[%emt 0:18:43]} Kb6 {[%emt 0:03:28]} 43. fxe4 {[%emt 0:04:46]} c3 {[%emt 0:04:20]} 44. d5 Rg8 45. d6 {[%emt 0:07:44]} Rc8 {[%emt 0:10:45]} 46. d7 {[%emt 0:00:31]} Rd8 {[%emt 0:00:01]} 47. Rf7 {[%emt 0:00:30]} c2 {[%emt 0:00:31]} 48. Rf1 {[%emt 0:00:09]} Rxd7 {[%emt 0:00:29]} 49. Rc1 {[%emt 0:00:52]} Rd2 {[%emt 0:00:37]} 50. g4 {[%emt 0:00:18]} b4 {[%emt 0:00:51]} 51. e6 {[%emt 0:00:25]} Kc7 {[%emt 0:00:25]} 52. g5 {[%emt 0:00:35]} b3 {[%emt 0:00:24]} 53. g6 {[%emt 0:00:25]} b2 {[%emt 0:02:06]} 54. e7 {[%emt 0:00:46]} bxc1=Q {[%emt 0:00:09]} 55. e8=Q {[%emt 0:00:09]} Qf1+ {[%emt 0:00:45]} 56. Kg3 {[%emt 0:00:11]} Rg2+ {[%emt 0:00:06]} 57. Kh3 {[%emt 0:00:03]} Qh1# {[%emt 0:00:04]} *

[Event "EYTCC Open U18 2018"]
[Site "Bad Blankeburg"]
[Date "2018.07.12"]
[Round "1"]
[White "Iliaguev, Nisim"]
[Black "Papunidi, Matvey"]
[Result "1-0"]
[ECO "D00"]
[WhiteElo "2335"]
[BlackElo "1913"]
[Annotator "NA"]
[PlyCount "88"]
[EventDate "2018.07.12"]
[EventType "swiss"]
[EventCountry "GER"]
[SourceTitle "playchess.com"]
[Source "ChessBase"]
[SourceQuality "1"]
[TimeControl "40/5400+30:1800+30"]

1. d4 {[%emt 0:00:23]} d5 {[%emt 0:00:00]} 2. Bf4 {[%emt 0:00:32]} Nf6 {[%emt 0:00:02]} 3. e3 {[%emt 0:00:25]} c5 {[%emt 0:00:27]} 4. c3 {[%emt 0:00:48]} Nc6 {[%emt 0:02:01]} 5. Nf3 {[%emt 0:00:19]} Qb6 {[%emt 0:00:20]} 6. Qb3 {[%emt 0:00:27]} c4 {[%emt 0:00:06]} 7. Qc2 {[%emt 0:00:04]} Bf5 {[%emt 0:00:13]} 8. Qc1 {[%emt 0:00:01]} e6 {[%emt 0:04:37]} 9. Be2 {[%emt 0:00:40]} Be7 {[%emt 0:01:07]} 10. O-O {[%emt 0:00:29]} h6 {[%emt 0:15:07]} 11. h3 {[%emt 0:01:14]} O-O {[%emt 0:00:59]} 12. Nbd2 {[%emt 0:00:19]} Qd8 {[%emt 0:01:37]} 13. Bg3 {[%emt 0:16:38]} b5 {[%emt 0:02:46]} 14. b3 {[%emt 0:01:45]} cxb3 {[%emt 0:24:37]} 15. axb3 {[%emt 0:00:51]} Qb6 {[%emt 0:02:06]} 16. c4 {[%emt 0:01:26]} Rfc8 {[%emt 0:07:03]} 17. c5 {[%emt 0:18:22]} Qb7 {[%emt 0:00:22]} 18. Qb2 {[%emt 0:05:21]} a6 {[%emt 0:13:03]} 19. b4 {[%emt 0:01:19]} Ne4 {[%emt 0:00:57]} 20. Nxe4 {[%emt 0:01:35]} Bxe4 {[%emt 0:00:02]} 21. Ne5 {[%emt 0:01:23]} Bf6 {[%emt 0:04:02]} 22. Nxc6 {[%emt 0:01:23]} Qxc6 {[%emt 0:00:06]} 23. Ra3 {[%emt 0:00:54]} Bd8 {[%emt 0:05:39]} 24. Rfa1 {[%emt 0:00:18]} Ra7 {[%emt 0:00:57]} 25. Qc1 {[%emt 0:04:51]} Rca8 {[%emt 0:01:46]} 26. Qf1 {[%emt 0:00:54]} Rb7 {[%emt 0:01:13]} 27. R3a2 {[%emt 0:04:59]} Kf8 {[%emt 0:02:00]} 28. Bd1 {[%emt 0:01:41]} Rba7 {[%emt 0:02:12]} 29. Be2 {[%emt 0:04:02]} Rb7 {[%emt 0:00:05]} 30. Qe1 {[%emt 0:00:43]} Rba7 {[%emt 0:00:57]} 31. Qd2 {[%emt 0:00:13]} Kg8 {[%emt 0:00:41]} 32. Bd1 {[%emt 0:00:10]} Bf6 {[%emt 0:03:14]} 33. Ra5 {[%emt 0:00:57]} Bd8 {[%emt 0:00:06]} 34. R5a3 {[%emt 0:00:08]} Kf8 {[%emt 0:00:47]} 35. Bb3 {[%emt 0:01:52]} Bg6 {[%emt 0:01:53]} 36. f3 {[%emt 0:00:33]} Bg5 {[%emt 0:01:15]} 37. Re1 {[%emt 0:04:23]} Kg8 {[%emt 0:01:32]} 38. Kh2 {[%emt 0:05:32]} h5 {[%emt 0:01:24]} 39. Qa2 {[%emt 0:04:06]} Rd8 {[%emt 0:00:44]} 40. Be5 {[%emt 0:06:30]} h4 {[%emt 0:00:41]} 41. Kh1 {[%emt 0:30:27]} Bd3 {[%emt 0:30:26]} 42. Bxd5 {[%emt 0:01:58]} Rxd5 {[%emt 0:00:47]} 43. Rxd3 {[%emt 0:00:13]} Rad7 {[%emt 0:00:47]} 44. Ra3 {[%emt 0:00:26]} Qc8 1-0

[Event "EYTCC Open U18 2018"]
[Site "Bad Blankeburg"]
[Date "2018.07.12"]
[Round "1"]
[White "Szustakowski, Antoni"]
[Black "Stevanic, David"]
[Result "1-0"]
[ECO "A13"]
[WhiteElo "2330"]
[BlackElo "2253"]
[Annotator "NA"]
[PlyCount "141"]
[EventDate "2018.07.12"]
[EventType "swiss"]
[EventCountry "GER"]
[SourceTitle "playchess.com"]
[Source "ChessBase"]
[SourceQuality "1"]
[TimeControl "40/5400+30:1800+30"]

1. Nf3 {[%emt 0:00:00]} d5 {[%emt 0:00:00]} 2. c4 {[%emt 0:00:00]} e6 {[%emt 0:00:18]} 3. g3 {[%emt 0:00:00]} c5 {[%emt 0:01:16]} 4. cxd5 {[%emt 0:00:17]} exd5 {[%emt 0:00:26]} 5. d4 {[%emt 0:00:11]} Nc6 {[%emt 0:00:32]} 6. Bg2 {[%emt 0:00:10]} Nf6 {[%emt 0:00:23]} 7. O-O {[%emt 0:00:08]} Be7 {[%emt 0:00:40]} 8. dxc5 {[%emt 0:00:07]} Bxc5 {[%emt 0:01:14]} 9. Qc2 {[%emt 0:00:10]} Bb6 {[%emt 0:06:56]} 10. Nc3 {[%emt 0:05:12]} h6 {[%emt 0:11:10]} 11. Na4 {[%emt 0:04:20]} O-O {[%emt 0:05:00]} 12. Rd1 {[%emt 0:04:00]} Bg4 {[%emt 0:12:24]} 13. Nxb6 {[%emt 0:10:45]} Qxb6 {[%emt 0:00:08]} 14. Be3 {[%emt 0:00:12]} Qa6 {[%emt 0:02:21]} 15. b3 {[%emt 0:11:53]} Rac8 {[%emt 0:12:41]} 16. Qb2 {[%emt 0:04:18]} Nb4 {[%emt 0:12:40]} 17. Nd4 {[%emt 0:06:22]} Nc6 {[%emt 0:08:23]} 18. Bf1 {[%emt 0:01:51]} Rfe8 {[%emt 0:01:06]} 19. Rac1 {[%emt 0:13:03]} Ne4 {[%emt 0:11:31]} 20. Nxc6 {[%emt 0:04:38]} Rxc6 {[%emt 0:02:32]} 21. Rxc6 {[%emt 0:04:42]} Qxc6 {[%emt 0:01:25]} 22. Qd4 {[%emt 0:01:16]} Nf6 {[%emt 0:03:14]} 23. Rc1 {[%emt 0:06:05]} Qd7 {[%emt 0:01:13]} 24. Qf4 {[%emt 0:04:51]} Rc8 {[%emt 0:02:08]} 25. Rxc8+ {[%emt 0:00:28]} Qxc8 {[%emt 0:00:04]} 26. f3 {[%emt 0:02:30]} Be6 {[%emt 0:01:31]} 27. Bd4 {[%emt 0:00:59]} Qc2 {[%emt 0:01:22]} 28. Qb8+ {[%emt 0:02:06]} Kh7 {[%emt 0:00:08]} 29. Qxa7 {[%emt 0:00:03]} Qb1 {[%emt 0:00:39]} 30. Kf2 {[%emt 0:00:40]} Qf5 {[%emt 0:00:49]} 31. Qa5 {[%emt 0:02:51]} h5 {[%emt 0:00:36]} 32. Bxf6 {[%emt 0:02:57]} Qxf6 {[%emt 0:00:24]} 33. Qd2 {[%emt 0:00:05]} h4 {[%emt 0:00:38]} 34. e3 {[%emt 0:00:50]} hxg3+ {[%emt 0:00:26]} 35. hxg3 {[%emt 0:00:05]} Qa1 {[%emt 0:00:29]} 36. Bd3+ {[%emt 0:03:21]} g6 {[%emt 0:00:27]} 37. Kg2 {[%emt 0:00:33]} Kg8 {[%emt 0:00:34]} 38. Qc2 {[%emt 0:03:23]} Qe1 {[%emt 0:00:28]} 39. Qe2 {[%emt 0:01:55]} Qa1 {[%emt 0:00:12]} 40. Qc2 {[%emt 0:01:44]} Qe1 {[%emt 0:00:07]} 41. Qe2 {[%emt 0:30:13]} Qa1 {[%emt 0:30:06]} 42. g4 {[%emt 0:00:00]} d4 {[%emt 0:00:00]} 43. exd4 {[%emt 0:00:00]} Qxd4 {[%emt 0:00:00]} 44. Bxg6 {[%emt 0:00:00]} Bd5 {[%emt 0:00:00]} 45. Be4 {[%emt 0:00:00]} Bxe4 {[%emt 0:00:00]} 46. Qxe4 {[%emt 0:00:00]} Qb2+ {[%emt 0:00:00]} 47. Kg3 {[%emt 0:00:00]} Qxa2 {[%emt 0:00:00]} 48. Qxb7 {[%emt 0:00:00]} Qa1 {[%emt 0:00:00]} 49. Qc8+ {[%emt 0:00:00]} Kg7 {[%emt 0:00:00]} 50. Qc4 {[%emt 0:00:00]} Qe1+ {[%emt 0:00:00]} 51. Kf4 {[%emt 0:00:00]} f6 {[%emt 0:00:00]} 52. Qd5 {[%emt 0:00:00]} Qc1+ {[%emt 0:00:00]} 53. Ke4 {[%emt 0:00:00]} Qc2+ {[%emt 0:00:00]} 54. Kd4 {[%emt 0:00:00]} Qd2+ {[%emt 0:00:00]} 55. Kc4 {[%emt 0:00:00]} Qe2+ {[%emt 0:00:00]} 56. Kb4 {[%emt 0:00:00]} Qe1+ {[%emt 0:00:00]} 57. Kb5 {[%emt 0:00:00]} Qe2+ {[%emt 0:00:00]} 58. Kb6 {[%emt 0:00:00]} Qe3+ {[%emt 0:00:00]} 59. Kb7 {[%emt 0:00:00]} Qe7+ {[%emt 0:00:00]} 60. Kc6 {[%emt 0:00:00]} Qa3 {[%emt 0:00:00]} 61. Kb5 {[%emt 0:03:28]} Qa7 {[%emt 0:00:00]} 62. g5 {[%emt 0:01:23]} fxg5 {[%emt 0:00:00]} 63. Qxg5+ {[%emt 0:00:05]} Kf7 {[%emt 0:00:00]} 64. Qd5+ {[%emt 0:01:06]} Kg7 {[%emt 0:00:00]} 65. b4 {[%emt 0:01:14]} Qb8+ {[%emt 0:00:00]} 66. Kc4 {[%emt 0:00:00]} Qc7+ {[%emt 0:00:00]} 67. Kb3 {[%emt 0:00:00]} Qc1 {[%emt 0:00:00]} 68. Qd4+ {[%emt 0:00:11]} Kh6 {[%emt 0:00:00]} 69. Qd3 {[%emt 0:00:32]} Qc6 {[%emt 0:00:06]} 70. Qe3+ {[%emt 0:00:20]} Kh5 {[%emt 0:00:35]} 71. Qc5+ {[%emt 0:00:02]} 1-0

[Event "EYTCC Open U18 2018"]
[Site "Bad Blankeburg"]
[Date "2018.07.12"]
[Round "1"]
[White "Szustakowski, Antoni"]
[Black "Stevanic, David"]
[Result "*"]
[ECO "B10"]
[WhiteElo "2330"]
[BlackElo "2253"]
[Annotator "NA"]
[PlyCount "60"]
[EventDate "2018.07.12"]
[EventType "swiss"]
[EventCountry "GER"]
[SourceTitle "playchess.com"]
[Source "ChessBase"]
[SourceQuality "1"]
[TimeControl "40/5400+30:1800+30"]

1. e4 c6 {[%emt 0:01:47]} 2. Nf3 {[%emt 0:00:15]} d5 {[%emt 0:00:05]} 3. Nc3 {[%emt 0:00:02]} dxe4 {[%emt 0:00:05]} 4. Nxe4 {[%emt 0:00:04]} Nf6 {[%emt 0:00:02]} 5. Qe2 {[%emt 0:00:01]} Nxe4 {[%emt 0:00:13]} 6. Qxe4 {[%emt 0:00:01]} Qd5 {[%emt 0:00:01]} 7. Qf4 {[%emt 0:00:07]} Qf5 {[%emt 0:02:21]} 8. d3 {[%emt 0:00:01]} Qxf4 {[%emt 0:00:44]} 9. Bxf4 {[%emt 0:00:02]} Bg4 {[%emt 0:02:28]} 10. Be2 {[%emt 0:01:23]} Nd7 {[%emt 0:00:57]} 11. O-O-O {[%emt 0:01:00]} e6 {[%emt 0:01:18]} 12. h3 {[%emt 0:02:52]} Bxf3 {[%emt 0:01:30]} 13. Bxf3 {[%emt 0:00:09]} O-O-O {[%emt 0:01:26]} 14. d4 {[%emt 0:06:13]} Nf6 {[%emt 0:00:07]} 15. c4 {[%emt 0:00:29]} Bd6 {[%emt 0:04:17]} 16. Be3 {[%emt 0:00:05]} Kb8 {[%emt 0:10:07]} 17. Rd3 {[%emt 0:02:45]} Rd7 {[%emt 0:05:05]} 18. Rhd1 {[%emt 0:01:07]} Rhd8 {[%emt 0:00:57]} 19. Kc2 {[%emt 0:03:03]} Be7 {[%emt 0:03:02]} 20. a3 {[%emt 0:02:16]} Ne8 {[%emt 0:05:31]} 21. g4 {[%emt 0:06:06]} Rc8 {[%emt 0:04:30]} 22. Kb3 {[%emt 0:10:21]} Rcd8 {[%emt 0:02:57]} 23. Kc3 {[%emt 0:18:52]} Rc8 {[%emt 0:02:18]} 24. R3d2 {[%emt 0:05:44]} a6 {[%emt 0:06:53]} 25. Kb3 {[%emt 0:00:57]} Rcd8 {[%emt 0:01:01]} 26. d5 {[%emt 0:03:31]} cxd5 {[%emt 0:01:19]} 27. cxd5 {[%emt 0:00:30]} e5 {[%emt 0:00:57]} 28. g5 {[%emt 0:04:05]} Nd6 {[%emt 0:18:08]} 29. Bg4 {[%emt 0:08:54]} Rc7 {[%emt 0:01:37]} 30. Bb6 {[%emt 0:00:21]} Bxg5 {[%emt 0:00:03]} *

[Event "EYTCC Open U18 2018"]
[Site "Bad Blankeburg"]
[Date "2018.07.12"]
[Round "1"]
[White "Sahidi, Samir"]
[Black "Morgunov, Daniel"]
[Result "*"]
[ECO "D00"]
[WhiteElo "2300"]
[BlackElo "2346"]
[Annotator "NA"]
[PlyCount "55"]
[EventDate "2018.07.12"]
[EventType "swiss"]
[EventCountry "GER"]
[SourceTitle "playchess.com"]
[Source "ChessBase"]
[SourceQuality "1"]
[TimeControl "40/5400+30:1800+30"]

1. d4 {[%emt 0:00:23]} d5 {[%emt 0:00:00]} 2. Bf4 {[%emt 0:00:32]} Nf6 {[%emt 0:00:02]} 3. e3 {[%emt 0:00:25]} c5 {[%emt 0:00:27]} 4. c3 {[%emt 0:00:48]} Nc6 {[%emt 0:02:01]} 5. Nf3 {[%emt 0:00:19]} Qb6 {[%emt 0:00:20]} 6. Qb3 {[%emt 0:00:27]} c4 {[%emt 0:00:06]} 7. Qc2 {[%emt 0:00:04]} Bf5 {[%emt 0:00:13]} 8. Qc1 {[%emt 0:00:01]} e6 {[%emt 0:04:37]} 9. Be2 {[%emt 0:00:40]} Be7 {[%emt 0:01:07]} 10. O-O {[%emt 0:00:29]} h6 {[%emt 0:15:07]} 11. h3 {[%emt 0:01:14]} O-O {[%emt 0:00:59]} 12. Nbd2 {[%emt 0:00:19]} Qd8 {[%emt 0:01:37]} 13. Bg3 {[%emt 0:16:38]} b5 {[%emt 0:02:46]} 14. b3 {[%emt 0:01:45]} cxb3 {[%emt 0:24:37]} 15. axb3 {[%emt 0:00:51]} Qb6 {[%emt 0:02:06]} 16. c4 {[%emt 0:01:26]} Rfc8 {[%emt 0:07:03]} 17. c5 {[%emt 0:18:22]} Qb7 {[%emt 0:00:22]} 18. Qb2 {[%emt 0:05:21]} a6 {[%emt 0:13:03]} 19. b4 {[%emt 0:01:19]} Ne4 {[%emt 0:00:57]} 20. Nxe4 {[%emt 0:01:35]} Bxe4 {[%emt 0:00:02]} 21. Ne5 {[%emt 0:01:23]} Bf6 {[%emt 0:04:02]} 22. Nxc6 {[%emt 0:01:23]} Qxc6 {[%emt 0:00:06]} 23. Ra3 {[%emt 0:00:54]} Bd8 {[%emt 0:05:39]} 24. Rfa1 {[%emt 0:00:18]} Ra7 {[%emt 0:00:57]} 25. Qc1 {[%emt 0:04:51]} Rca8 {[%emt 0:01:46]} 26. Qf1 {[%emt 0:00:54]} Rb7 {[%emt 0:01:13]} 27. R3a2 {[%emt 0:04:59]} Kf8 {[%emt 0:02:00]} 28. Bd1 {[%emt 0:01:41]} *

[Event "EYTCC Open U18 2018"]
[Site "Bad Blankeburg"]
[Date "2018.07.12"]
[Round "1"]
[White "Sahidi, Samir"]
[Black "Morgunov, Daniel"]
[Result "0-1"]
[ECO "E97"]
[WhiteElo "2300"]
[BlackElo "2346"]
[Annotator "NA"]
[PlyCount "56"]
[EventDate "2018.07.12"]
[EventType "swiss"]
[EventCountry "GER"]
[SourceTitle "playchess.com"]
[Source "ChessBase"]
[SourceQuality "1"]
[TimeControl "40/5400+30:1800+30"]

1. d4 {[%emt 0:00:00]} Nf6 {[%emt 0:00:00]} 2. c4 {[%emt 0:00:00]} g6 {[%emt 0:00:00]} 3. Nc3 {[%emt 0:00:00]} Bg7 {[%emt 0:00:00]} 4. e4 {[%emt 0:00:00]} d6 {[%emt 0:00:00]} 5. Be2 {[%emt 0:00:06]} O-O {[%emt 0:00:00]} 6. Nf3 {[%emt 0:00:17]} e5 {[%emt 0:00:00]} 7. O-O {[%emt 0:00:34]} Nc6 {[%emt 0:00:36]} 8. d5 {[%emt 0:00:55]} Ne7 {[%emt 0:00:05]} 9. b4 {[%emt 0:00:27]} Nh5 {[%emt 0:02:34]} 10. Ne1 {[%emt 0:04:47]} Nf4 {[%emt 0:01:02]} 11. Nd3 {[%emt 0:00:53]} f5 {[%emt 0:04:22]} 12. Bf3 {[%emt 0:05:52]} g5 {[%emt 0:04:33]} 13. Bh5 {[%emt 0:03:53]} Neg6 {[%emt 0:11:35]} 14. c5 {[%emt 0:12:14]} g4 {[%emt 0:07:05]} 15. Bxg6 {[%emt 0:01:05]} hxg6 {[%emt 0:00:32]} 16. cxd6 {[%emt 0:04:00]} cxd6 {[%emt 0:01:13]} 17. Nb2 {[%emt 0:02:45]} Bd7 {[%emt 0:17:59]} 18. Bd2 {[%emt 0:01:22]} Rc8 {[%emt 0:02:53]} 19. Qb3 {[%emt 0:02:23]} Qh4 {[%emt 0:01:53]} 20. Nc4 {[%emt 0:05:47]} Rxc4 {[%emt 0:06:56]} 21. Qxc4 {[%emt 0:01:24]} Rc8 {[%emt 0:00:07]} 22. Qb3 {[%emt 0:00:52]} Kf7 {[%emt 0:01:07]} 23. g3 {[%emt 0:06:28]} Qh3 {[%emt 0:04:54]} 24. gxf4 {[%emt 0:01:21]} Rh8 {[%emt 0:00:48]} 25. Rfc1 {[%emt 0:01:43]} Qxh2+ {[%emt 0:00:20]} 26. Kf1 {[%emt 0:00:08]} Qh1+ {[%emt 0:00:04]} 27. Ke2 {[%emt 0:00:04]} Qf3+ {[%emt 0:00:03]} 28. Ke1 {[%emt 0:00:12]} Rh1# {[%emt 0:00:05]} 0-1